fUSD/lending_fUSD_20250812
["ID","MTS","AMOUNT","RATE_DAILY","PERIOD"]
[378818652,1755035460121,-416.82059906,0.00049589,120]
[378818653,1755035460130,-400.0,0.00049589,120]
[378818654,1755035460140,-400.0,0.00049589,120]
[378818655,1755035460149,-369.50733408,0.00049589,120]
[378818656,1755035460159,-593.36,0.00049589,120]
[378818657,1755035460170,-400.0,0.00049589,120]
[378818658,1755035460179,-400.0,0.00049589,120]
[378818659,1755035460189,-400.0,0.00049589,120]
[378818660,1755035460198,-400.0,0.00049589,120]
[378818661,1755035460208,-460.0,0.00049589,120]
[378818662,1755035460217,-400.0,0.00049589,120]
[378818663,1755035460227,-400.0,0.00049589,120]
[378818664,1755035460237,-749.02,0.00049589,120]
[378818665,1755035460308,-400.0,0.00049589,120]
[378818666,1755035460317,-403.77521486,0.00049589,120]
[378818667,1755035460326,-400.0,0.00049589,120]
[378818668,1755035460335,-400.0,0.00049589,120]
[378818669,1755035460345,-400.0,0.00049589,120]
[378818670,1755035460354,-400.0,0.00049589,120]
[378818671,1755035460364,-400.0,0.00049589,120]
[378818672,1755035460373,-400.0,0.00049589,120]
[378818673,1755035460383,-400.0,0.00049589,120]
[378818674,1755035460392,-529.71,0.00049589,120]
[378818675,1755035460401,-400.0,0.00049589,120]
[378818676,1755035460410,-400.0,0.00049589,120]
[378818677,1755035460419,-489.51,0.00049589,120]
[378818678,1755035460428,-400.0,0.00049589,120]
[378818679,1755035460437,-400.0,0.00049589,120]
[378818680,1755035460446,-400.0,0.00049589,120]
[378818681,1755035460456,-400.0,0.00049589,120]
[378818682,1755035460465,-400.0,0.00049589,120]
[378818683,1755035460474,-460.0,0.00049589,120]
[378818684,1755035460484,-400.0,0.00049589,120]
[378818685,1755035460493,-400.0,0.00049589,120]
[378818686,1755035460503,-400.0,0.00049589,60]
[378818687,1755035460512,-400.0,0.00049589,120]
[378818688,1755035460522,-400.0,0.00049589,120]
[378818689,1755035460532,-400.0,0.00049589,120]
[378818690,1755035460542,-300.4653262,0.00049589,120]
[378818691,1755035460552,-400.0,0.00049589,120]
[378818692,1755035460561,-400.0,0.00049589,120]
[378818693,1755035460571,-400.0,0.00049589,120]
[378818694,1755035460580,-400.0,0.00049589,120]
[378818695,1755035460589,-400.0,0.00049589,120]
[378818696,1755035460599,-400.0,0.00049589,120]
[378818697,1755035460608,-400.0,0.00049589,120]
[378818698,1755035460617,-400.0,0.00049589,120]
[378818699,1755035460628,-400.0,0.00049589,120]
[378818700,1755035460638,-400.0,0.00049589,120]
[378818701,1755035460647,-427.62,0.00049589,120]
[378818702,1755035460657,-1495.21,0.00049589,120]
[378818703,1755035460666,-400.0,0.00049589,120]
[378818704,1755035460675,-400.0,0.00049589,120]
[378818705,1755035460685,-400.0,0.00049589,120]
[378818706,1755035460695,-400.0,0.00049589,120]
[378818707,1755035460704,-400.0,0.00049589,120]
[378818708,1755035460714,-400.0,0.00049589,120]
[378818709,1755035460723,-400.0,0.00049589,120]
[378818710,1755035460733,-400.0,0.00049589,120]
[378818711,1755035460742,-400.0,0.00049589,120]
[378818712,1755035460751,-400.0,0.00049589,120]
[378818713,1755035460761,-869.5,0.00049589,120]
[378818714,1755035460770,-400.0,0.00049589,120]
[378818715,1755035460781,-869.0,0.00049589,120]
[378818716,1755035460790,-1042.68,0.00049589,120]
[378818717,1755035460799,-690.71,0.00049589,120]
[378818718,1755035460809,-424.17,0.00049589,120]
[378818719,1755035460818,-400.0,0.00049589,120]
[378818720,1755035460828,-635.01,0.00049589,120]
[378818721,1755035460837,-515.13,0.00049589,120]
[378818722,1755035460846,-400.0,0.00049589,120]
[378818723,1755035460857,-400.0,0.00049589,120]
[378818724,1755035460867,-400.0,0.00049589,120]
[378818725,1755035460876,-1030.69,0.00049589,120]
[378818726,1755035460885,-400.0,0.00049589,120]
[378818727,1755035460895,-400.0,0.00049589,120]
[378818728,1755035460905,-400.0,0.00049589,120]
[378818729,1755035460914,-676.85,0.00049589,120]
[378818730,1755035460923,-400.0,0.00049589,120]
[378818731,1755035460933,-400.0,0.00049589,120]
[378818732,1755035460943,-400.0,0.00049589,120]
[378818733,1755035460952,-595.39,0.00049589,120]
[378818734,1755035460962,-400.0,0.00049589,120]
[378818735,1755035460971,-400.0,0.00049589,120]
[378818736,1755035460980,-400.0,0.00049589,120]
[378818737,1755035460989,-400.0,0.00049589,120]
[378818738,1755035461000,-400.0,0.00049589,120]
[378818739,1755035461013,-570.3,0.00049589,120]
[378818740,1755035461022,-190.61150315,0.00049589,120]
[378818741,1755035461033,-474.84,0.00049589,120]
[378818742,1755035461043,-400.0,0.00049589,120]
[378818743,1755035461053,-437.77,0.00049589,120]
[378818744,1755035461063,-387.16162652,0.00049589,120]
[378818745,1755035461072,-457.43,0.00049589,120]
[378818746,1755035461081,-400.0,0.00049589,120]
[378818747,1755035461092,-671.71,0.00049589,120]
[378818748,1755035461101,-486.37,0.00049589,120]
[378818749,1755035461111,-400.0,0.00049589,120]
[378818750,1755035461120,-228.26,0.00049589,120]
[378818751,1755035461130,-400.0,0.00049589,120]
[378818752,1755035461139,-687.14,0.00049589,120]
[378818753,1755035461148,-664.08,0.00049589,120]
[378818754,1755035461158,-400.0,0.00049589,120]
[378818755,1755035461167,-400.0,0.00049589,120]
[378818756,1755035461176,-400.0,0.00049589,120]
[378818757,1755035461185,-400.0,0.00049589,120]
[378818758,1755035461195,-620.72,0.00049589,120]
[378818759,1755035461204,-400.0,0.00049589,120]
[378818760,1755035461214,-400.0,0.00049589,120]
[378818761,1755035461223,-400.0,0.00049589,120]
[378818762,1755035461232,-430.29,0.00049589,120]
[378818763,1755035461242,-400.0,0.00049589,120]
[378818764,1755035461250,-460.0,0.00049589,120]
[378818765,1755035461260,-400.0,0.00049589,120]
[378818766,1755035461269,-400.0,0.00049589,120]
[378818767,1755035461279,-400.0,0.00049589,120]
[378818768,1755035461288,-654.49,0.00049589,120]
[378818769,1755035461297,-1311.07,0.00049589,120]
[378818770,1755035461306,-525.12,0.00049589,120]
[378818771,1755035461317,-486.03395796,0.00049589,120]
[378818772,1755035461326,-400.0,0.00049589,120]
[378818773,1755035461335,-400.0,0.00049589,120]
[378818774,1755035461346,-400.0,0.00049589,120]
[378818775,1755035461356,-400.0,0.00049589,120]
[378818776,1755035461365,-400.0,0.00049589,120]
[378818777,1755035461374,-400.0,0.00049589,120]
[378818778,1755035461384,-616.48,0.00049589,120]
[378818779,1755035461393,-400.0,0.00049589,120]
[378818780,1755035461402,-1490.55,0.00049589,120]
[378818781,1755035461412,-539.25446553,0.00049589,120]
[378818782,1755035461421,-400.0,0.00049589,120]
[378818783,1755035461431,-509.2,0.00049589,120]
[378818784,1755035461440,-400.0,0.00049589,120]
[378818785,1755035461450,-400.0,0.00049589,120]
[378818786,1755035461459,-624.64,0.00049589,120]
[378818787,1755035461468,-400.0,0.00049589,120]
[378818788,1755035461478,-400.0,0.00049589,120]
[378818789,1755035461487,-400.0,0.00049589,120]
[378818790,1755035461496,-400.0,0.00049589,120]
[378818791,1755035461505,-400.0,0.00049589,120]
[378818792,1755035461515,-556.96,0.00049589,120]
[378818793,1755035461524,-400.0,0.00049589,120]
[378818794,1755035461534,-400.0,0.00049589,120]
[378818795,1755035461543,-400.0,0.00049589,120]
[378818796,1755035461552,-400.0,0.00049589,120]
[378818797,1755035461561,-400.0,0.00049589,120]
[378818798,1755035461571,-686.73,0.00049589,120]
[378818799,1755035461580,-420.5,0.00049589,120]
[378818800,1755035461590,-400.0,0.00049589,120]
[378818801,1755035461599,-662.48,0.00049589,120]
[378818802,1755035461608,-401.1,0.00049589,120]
[378818803,1755035461617,-180.48,0.00049589,120]
[378818804,1755035461627,-637.52,0.00049589,120]
[378818805,1755035461635,-460.0,0.00049589,120]
[378818806,1755035461644,-826.26,0.00049589,120]
[378818807,1755035461654,-577.88,0.00049589,120]
[378818808,1755035461664,-400.0,0.00049589,120]
[378818809,1755035461675,-400.0,0.00049589,120]
[378818810,1755035461684,-400.0,0.00049589,120]
[378818811,1755035461693,-939.46,0.00049589,120]
[378818812,1755035461702,-1075.37,0.00049589,120]
[378818813,1755035461711,-400.0,0.00049589,120]
[378818814,1755035461720,-400.0,0.00049589,120]
[378818815,1755035461730,-400.0,0.00049589,120]
[378818816,1755035461739,-400.0,0.00049589,120]
[378818817,1755035461748,-400.0,0.00049589,120]
[378818818,1755035461757,-400.0,0.00049589,120]
[378818819,1755035461767,-400.0,0.00049589,120]
[378818820,1755035461777,-1583.84,0.00049589,120]
[378818821,1755035461787,-738.78,0.00049589,120]
[378818822,1755035461796,-347.99905678,0.00049589,120]
[378818823,1755035461806,-400.0,0.00049589,120]
[378818824,1755035461815,-400.0,0.00049589,120]
[378818825,1755035461824,-400.0,0.00049589,120]
[378818826,1755035461833,-400.0,0.00049589,120]
[378818827,1755035461842,-558.49,0.00049589,120]
[378818828,1755035461851,-400.0,0.00049589,120]
[378818829,1755035461860,-1082.49,0.00049589,120]
[378818830,1755035461870,-1327.04,0.00049589,120]
[378818831,1755035461879,-400.0,0.00049589,120]
[378818832,1755035461893,-400.0,0.00049589,120]
[378818833,1755035461902,-660.32,0.00049589,120]
[378818834,1755035461911,-400.0,0.00049589,120]
[378818835,1755035461920,-710.24,0.00049589,120]
[378818836,1755035461930,-487.57,0.00049589,120]
[378818837,1755035461939,-576.04,0.00049589,30]
[378818838,1755035461948,-400.0,0.00049589,120]
[378818839,1755035461958,-541.87,0.00049589,120]
[378818840,1755035461967,-400.0,0.00049589,120]
[378818841,1755035461976,-400.0,0.00049589,120]
[378818842,1755035461986,-400.0,0.00049589,120]
[378818843,1755035461996,-664.56,0.00049589,120]
[378818844,1755035462008,-400.0,0.00049589,120]
[378818845,1755035462018,-400.0,0.00049589,120]
[378818846,1755035462028,-959.86,0.00049589,120]
[378818847,1755035462037,-943.67,0.00049589,120]
[378818848,1755035462048,-400.0,0.00049589,120]
[378818849,1755035462058,-287.04664109,0.00049589,120]
[378818850,1755035462068,-400.0,0.00049589,120]
[378818851,1755035462079,-400.0,0.00049589,120]
[378818852,1755035462088,-400.0,0.00049589,120]
[378818853,1755035462097,-400.0,0.00049589,120]
[378818854,1755035462107,-400.0,0.00049589,120]
[378818855,1755035462116,-400.0,0.00049589,120]
[378818856,1755035462126,-890.03,0.00049589,120]
[378818857,1755035462135,-591.65,0.00049589,120]
[378818858,1755035462144,-1049.69,0.00049589,120]
[378818859,1755035462153,-943.99,0.00049589,120]
[378818860,1755035462163,-400.0,0.00049589,120]
[378818861,1755035462172,-400.0,0.00049589,120]
[378818862,1755035462182,-400.0,0.00049589,120]
[378818863,1755035462191,-400.0,0.00049589,120]
[378818864,1755035462200,-1128.21,0.00049589,120]
[378818865,1755035462209,-400.0,0.00049589,120]
[378818866,1755035462219,-915.86,0.00049589,120]
[378818867,1755035462228,-400.0,0.00049589,120]
[378818868,1755035462237,-453.53,0.00049589,120]
[378818869,1755035462246,-584.68,0.00049589,120]
[378818870,1755035462255,-400.0,0.00049589,120]
[378818871,1755035462264,-1016.72,0.00049589,120]
[378818872,1755035462273,-967.54,0.00049589,120]
[378818873,1755035462284,-400.0,0.00049589,120]
[378818874,1755035462293,-400.0,0.00049589,120]
[378818875,1755035462302,-519.5,0.00049589,120]
[378818876,1755035462312,-400.0,0.00049589,120]
[378818877,1755035462321,-601.17,0.00049589,120]
[378818878,1755035462331,-400.0,0.00049589,120]
[378818879,1755035462340,-400.0,0.00049589,120]
[378818880,1755035462349,-852.45,0.00049589,120]
[378818881,1755035462358,-411.34,0.00049589,120]
[378818882,1755035462367,-400.0,0.00049589,120]
[378818883,1755035462377,-400.0,0.00049589,120]
[378818884,1755035462387,-400.0,0.00049589,120]
[378818885,1755035462396,-1106.73,0.00049589,120]
[378818886,1755035462405,-400.0,0.00049589,120]
[378818887,1755035462415,-400.0,0.00049589,120]
[378818888,1755035462424,-400.0,0.00049589,120]
[378818889,1755035462434,-400.0,0.00049589,120]
[378818890,1755035462443,-400.0,0.00049589,120]
[378818891,1755035462453,-400.0,0.00049589,120]
[378818892,1755035462462,-400.0,0.00049589,120]
[378818893,1755035462472,-410.97,0.00049589,120]
[378818894,1755035462481,-400.0,0.00049589,120]
[378818895,1755035462491,-400.0,0.00049589,120]
[378818896,1755035462500,-400.0,0.00049589,120]
[378818897,1755035462510,-400.0,0.00049589,120]
[378818898,1755035462520,-442.72,0.00049589,120]
[378818899,1755035462530,-400.0,0.00049589,120]
[378818900,1755035462539,-1047.49,0.00049589,120]
[378818901,1755035462550,-400.0,0.00049589,120]
[378818902,1755035462561,-400.0,0.00049589,120]
[378818903,1755035462572,-557.98,0.00049589,120]
[378818904,1755035462582,-447.93,0.00049589,120]
[378818905,1755035462592,-400.0,0.00049589,120]
[378818906,1755035462602,-400.0,0.00049589,120]
[378818907,1755035462612,-400.0,0.00049589,120]
[378818908,1755035462622,-400.0,0.00049589,120]
[378818909,1755035462631,-400.0,0.00049589,120]
[378818910,1755035462641,-520.0,0.00049589,120]
[378818911,1755035462651,-400.0,0.00049589,120]
[378818912,1755035462660,-1109.98,0.00049589,120]
[378818913,1755035462670,-400.0,0.00049589,120]
[378818914,1755035462680,-508.04,0.00049589,120]
[378818915,1755035462692,-525.47,0.00049589,120]
[378818916,1755035462701,-789.64,0.00049589,120]
[378818917,1755035462711,-400.0,0.00049589,120]
[378818918,1755035462721,-400.0,0.00049589,120]
[378818919,1755035462731,-400.0,0.00049589,120]
[378818920,1755035462741,-400.0,0.00049589,120]
[378818921,1755035462750,-1080.45,0.00049589,120]
[378818922,1755035462760,-400.0,0.00049589,120]
[378818923,1755035462770,-400.0,0.00049589,120]
[378818924,1755035462779,-567.68,0.00049589,120]
[378818925,1755035462789,-400.0,0.00049589,120]
[378818926,1755035462799,-542.96,0.00049589,120]
[378818927,1755035462809,-400.0,0.00049589,120]
[378818928,1755035462819,-400.0,0.00049589,120]
[378818929,1755035462829,-400.0,0.00049589,120]
[378818930,1755035462839,-1162.69,0.00049589,120]
[378818931,1755035462849,-1089.68,0.00049589,120]
[378818932,1755035462859,-510.84,0.00049589,120]
[378818933,1755035462869,-403.06154558,0.00049589,120]
[378818934,1755035462879,-400.0,0.00049589,120]
[378818935,1755035462890,-551.56,0.00049589,120]
[378818936,1755035462900,-400.0,0.00049589,120]
[378818937,1755035462910,-400.0,0.00049589,120]
[378818938,1755035462920,-799.92,0.00049589,120]
[378818939,1755035462930,-400.0,0.00049589,120]
[378818940,1755035462940,-442.87,0.00049589,120]
[378818941,1755035462949,-461.91146437,0.00049589,120]
[378818942,1755035462959,-517.64,0.00049589,120]
[378818943,1755035462969,-454.83,0.00049589,120]
[378818944,1755035462979,-400.0,0.00049589,120]
[378818945,1755035462989,-573.59,0.00049589,120]
[378818946,1755035462999,-482.87,0.00049589,120]
[378818947,1755035463009,-400.0,0.00049589,120]
[378818948,1755035463019,-1157.56,0.00049589,120]
[378818949,1755035463029,-400.0,0.00049589,120]
[378818950,1755035463039,-760.12,0.00049589,120]
[378818951,1755035463050,-400.0,0.00049589,120]
[378818952,1755035463061,-400.0,0.00049589,120]
[378818953,1755035463071,-400.0,0.00049589,120]
[378818954,1755035463082,-400.0,0.00049589,120]
[378818955,1755035463093,-400.0,0.00049589,120]
[378818956,1755035463102,-400.0,0.00049589,120]
[378818957,1755035463113,-460.0,0.00049589,120]
[378818958,1755035463122,-190.0,0.00049589,120]
[378818959,1755035463132,-968.55,0.00049589,120]
[378818960,1755035463142,-400.0,0.00049589,120]
[378818961,1755035463151,-400.0,0.00049589,120]
[378818962,1755035463161,-506.81,0.00049589,120]
[378818963,1755035463171,-400.0,0.00049589,120]
[378818964,1755035463181,-400.0,0.00049589,120]
[378818965,1755035463191,-400.0,0.00049589,120]
[378818966,1755035463201,-403.64586619,0.00049589,120]
[378818967,1755035463210,-846.29,0.00049589,120]
[378818968,1755035463221,-400.0,0.00049589,120]
[378818969,1755035463231,-431.86,0.00049589,120]
[378818970,1755035463241,-400.0,0.00049589,120]
[378818971,1755035463251,-519.83,0.00049589,120]
[378818972,1755035463261,-400.0,0.00049589,120]
[378818973,1755035463271,-400.0,0.00049589,120]
[378818974,1755035463281,-252.1651968,0.00049589,120]
[378818975,1755035463291,-400.0,0.00049589,120]
[378818976,1755035463301,-400.0,0.00049589,120]
[378818977,1755035463313,-446.06,0.00049589,120]
[378818978,1755035463323,-771.51,0.00049589,120]
[378818979,1755035463333,-400.0,0.00049589,120]
[378818980,1755035463342,-542.93,0.00049589,120]
[378818981,1755035463352,-400.0,0.00049589,120]
[378818982,1755035463362,-671.48,0.00049589,120]
[378818983,1755035463372,-400.0,0.00049589,120]
[378818984,1755035463382,-400.0,0.00049589,120]
[378818985,1755035463391,-400.0,0.00049589,120]
[378818986,1755035463401,-813.95,0.00049589,120]
[378818987,1755035463411,-400.0,0.00049589,120]
[378818988,1755035463420,-400.0,0.00049589,120]
[378818989,1755035463430,-400.0,0.00049589,120]
[378818990,1755035463440,-400.0,0.00049589,120]
[378818991,1755035463449,-400.0,0.00049589,120]
[378818992,1755035463459,-494.3,0.00049589,120]
[378818993,1755035463469,-400.0,0.00049589,120]
[378818994,1755035463479,-400.0,0.00049589,120]
[378818995,1755035463488,-400.0,0.00049589,120]
[378818996,1755035463498,-400.0,0.00049589,120]
[378818997,1755035463508,-400.0,0.00049589,120]
[378818998,1755035463517,-400.0,0.00049589,120]
[378818999,1755035463527,-400.0,0.00049589,120]
[378819000,1755035463538,-400.0,0.00049589,120]
[378819001,1755035463548,-400.0,0.00049589,120]
[378819002,1755035463558,-400.0,0.00049589,120]
[378819003,1755035463568,-400.0,0.00049589,120]
[378819004,1755035463578,-400.0,0.00049589,120]
[378819005,1755035463588,-1441.54,0.00049589,120]
[378819006,1755035463598,-300.0,0.00049589,120]
[378819007,1755035463608,-443.3,0.00049589,120]
[378819008,1755035463618,-400.0,0.00049589,120]
[378819009,1755035463628,-400.0,0.00049589,120]
[378819010,1755035463638,-551.14,0.00049589,120]
[378819011,1755035463647,-598.83,0.00049589,120]
[378819012,1755035463657,-451.04,0.00049589,120]
[378819013,1755035463667,-400.0,0.00049589,120]
[378819014,1755035463677,-969.12,0.00049589,120]
[378819015,1755035463687,-405.3244879,0.00049589,120]
[378819016,1755035463697,-400.0,0.00049589,120]
[378819017,1755035463706,-400.0,0.00049589,120]
[378819018,1755035463716,-400.0,0.00049589,120]
[378819019,1755035463726,-489.64309274,0.00049589,120]
[378819020,1755035463735,-400.0,0.00049589,120]
[378819021,1755035463744,-758.4,0.00049589,120]
[378819022,1755035463754,-1367.31,0.00049589,120]
[378819023,1755035463764,-179.06503134,0.00049589,120]
[378819024,1755035463773,-400.0,0.00049589,120]
[378819025,1755035463783,-430.59,0.00049589,120]
[378819026,1755035463793,-476.63,0.00049589,120]
[378819027,1755035463804,-400.0,0.00049589,120]
[378819028,1755035463813,-562.49,0.00049589,120]
[378819029,1755035463823,-893.76,0.00049589,120]
[378819030,1755035463833,-400.0,0.00049589,120]
[378819031,1755035463843,-400.0,0.00049589,120]
[378819032,1755035463852,-400.0,0.00049589,120]
[378819033,1755035463862,-400.0,0.00049589,120]
[378819034,1755035463872,-400.0,0.00049589,120]
[378819035,1755035463882,-826.44,0.00049589,120]
[378819036,1755035463892,-400.0,0.00049589,120]
[378819037,1755035463902,-400.0,0.00049589,120]
[378819038,1755035463912,-400.0,0.00049589,120]
[378819039,1755035463921,-400.0,0.00049589,120]
[378819040,1755035463931,-400.0,0.00049589,120]
[378819041,1755035463942,-548.41,0.00049589,120]
[378819042,1755035463951,-400.0,0.00049589,120]
[378819043,1755035463961,-485.11,0.00049589,120]
[378819044,1755035463971,-400.0,0.00049589,120]
[378819045,1755035463981,-400.0,0.00049589,120]
[378819046,1755035463990,-700.83,0.00049589,120]
[378819047,1755035464002,-400.0,0.00049589,120]
[378819048,1755035464012,-400.0,0.00049589,120]
[378819049,1755035464022,-151.0,0.00049589,120]
[378819050,1755035464032,-316.97526846,0.00049589,120]
[378819051,1755035464043,-460.0,0.00049589,120]
[378819052,1755035464053,-400.0,0.00049589,120]
[378819053,1755035464062,-500.0,0.00049589,120]
[378819054,1755035464072,-400.0,0.00049589,120]
[378819055,1755035464083,-254.29958279,0.00049589,2]
[378819056,1755035464092,-401.26501933,0.00049589,120]
[378819057,1755035464102,-400.0,0.00049589,120]
[378819058,1755035464112,-400.0,0.00049589,120]
[378819059,1755035464122,-400.0,0.00049589,120]
[378819060,1755035464132,-400.0,0.00049589,120]
[378819061,1755035464142,-552.21,0.00049589,120]
[378819062,1755035464151,-473.82,0.00049589,120]
[378819063,1755035464161,-400.0,0.00049589,120]
[378819064,1755035464171,-400.0,0.00049589,120]
[378819065,1755035464182,-400.0,0.00049589,120]
[378819066,1755035464192,-400.0,0.00049589,120]
[378819067,1755035464202,-400.0,0.00049589,120]
[378819068,1755035464212,-490.13,0.00049589,120]
[378819069,1755035464222,-400.0,0.00049589,120]
[378819070,1755035464232,-400.0,0.00049589,120]
[378819071,1755035464242,-400.0,0.00049589,120]
[378819072,1755035464252,-450.35,0.00049589,120]
[378819073,1755035464262,-400.0,0.00049589,120]
[378819074,1755035464271,-757.25,0.00049589,120]
[378819075,1755035464281,-151.0,0.00049589,120]
[378819076,1755035464291,-1498.36,0.00049589,120]
[378819077,1755035464300,-1333.73791804,0.00049589,120]
[378819078,1755035465082,-12.44828381,0.00049589,120]
[378819079,1755035465623,-2354.51,0.00031,30]
[378819080,1755035465632,-1706.7999997,0.0003726,30]
[378819081,1755035465641,-2524.3666353,0.00049111,15]
[378819082,1755035465650,-377.82,0.000492,30]
[378819083,1755035465660,-389.64379815,0.00049589,120]
[378819084,1755035465669,-418.13,0.00049589,120]
[378819085,1755035465679,-400.0,0.00049589,120]
[378819086,1755035465688,-400.0,0.00049589,120]
[378819087,1755035465697,-400.0,0.00049589,120]
[378819088,1755035465706,-617.64,0.00049589,120]
[378819089,1755035465716,-400.0,0.00049589,120]
[378819090,1755035465725,-520.0,0.00049589,120]
[378819091,1755035465734,-400.0,0.00049589,120]
[378819092,1755035465744,-400.0,0.00049589,120]
[378819093,1755035465753,-400.0,0.00049589,120]
[378819094,1755035465763,-400.0,0.00049589,120]
[378819095,1755035465772,-2053.9277134,0.00049589,120]
[378819096,1755035465923,-1124.4522866,0.00049589,120]
[378819097,1755035465932,-400.0,0.00049589,120]
[378819098,1755035465941,-151.0,0.00049589,120]
[378819099,1755035465950,-400.0,0.00049589,120]
[378819100,1755035465960,-1934.71,0.00049589,120]
[378819101,1755035465973,-488.76,0.00049589,120]
[378819102,1755035465983,-1535.04,0.00049589,120]
[378819103,1755035465993,-1684.45,0.00049589,120]
[378819104,1755035466006,-400.0,0.00049589,120]
[378819105,1755035466015,-400.0,0.00049589,120]
[378819106,1755035466025,-649.88,0.00049589,120]
[378819107,1755035466035,-422.19,0.00049589,120]
[378819108,1755035466045,-151.0,0.00049589,120]
[378819109,1755035466055,-400.0,0.00049589,120]
[378819110,1755035466064,-400.0,0.00049589,120]
[378819111,1755035466074,-400.0,0.00049589,120]
[378819112,1755035466084,-400.0,0.00049589,120]
[378819113,1755035466095,-917.43,0.00049589,120]
[378819114,1755035466104,-400.0,0.00049589,120]
[378819115,1755035466114,-400.0,0.00049589,120]
[378819116,1755035466124,-400.0,0.00049589,120]
[378819117,1755035466133,-400.0,0.00049589,120]
[378819118,1755035466144,-1355.6,0.00049589,120]
[378819119,1755035466153,-400.0,0.00049589,120]
[378819120,1755035466163,-400.0,0.00049589,120]
[378819121,1755035466172,-400.0,0.00049589,120]
[378819122,1755035466181,-400.0,0.00049589,120]
[378819123,1755035466191,-400.0,0.00049589,120]
[378819124,1755035466200,-400.0,0.00049589,120]
[378819125,1755035466210,-400.0,0.00049589,120]
[378819126,1755035466219,-979.2,0.00049589,120]
[378819127,1755035466228,-400.0,0.00049589,120]
[378819128,1755035466237,-401.68940676,0.00049589,120]
[378819129,1755035466247,-400.0,0.00049589,120]
[378819130,1755035466257,-400.0,0.00049589,120]
[378819131,1755035466267,-400.0,0.00049589,120]
[378819132,1755035466276,-1523.03,0.00049589,120]
[378819133,1755035466286,-400.0,0.00049589,120]
[378819134,1755035466296,-400.0,0.00049589,120]
[378819135,1755035466306,-1391.01,0.00049589,120]
[378819136,1755035466315,-2564.13,0.00049589,120]
[378819137,1755035466324,-400.0,0.00049589,120]
[378819138,1755035466334,-400.0,0.00049589,120]
[378819139,1755035466343,-400.0,0.00049589,120]
[378819140,1755035466352,-400.0,0.00049589,120]
[378819141,1755035466361,-400.0,0.00049589,120]
[378819142,1755035466371,-400.0,0.00049589,120]
[378819143,1755035466381,-325.74564881,0.00049589,120]
[378819144,1755035466400,-488.49,0.00049315,120]
[378819145,1755035466410,-74.25435119,0.00049589,120]
[378819146,1755035466420,-400.0,0.00049589,120]
[378819147,1755035466433,-400.0,0.00049589,120]
[378819148,1755035466442,-400.0,0.00049589,120]
[378819149,1755035466452,-400.0,0.00049589,120]
[378819150,1755035466463,-269.327482,0.00049589,120]
[378819151,1755035466472,-402.26844325,0.00049589,120]